[Event "Titled Tuesday Blitz July 18 Late 2023"]
[White "Kanyamarala, Trisha"]
[Black "Belov, Alexei"]
[WhiteFideId "45004722"]
[BlackFideId "4128206"]
[WhiteElo "2353"]
[BlackElo "2600"]
[Result "0-1"]
[Round "1"]
[TimeControl "180+2"]
[Date "2023.07.18"]
[WhiteClock "0:00:00"]
[BlackClock "0:00:14"]
[Board "113"]

1. c4 {[%clk 0:02:59]}  e6 {[%clk 0:02:59]} 2. Nc3 {[%clk 0:02:58]}  d5 {[%clk 0:02:57]} 3. d4 {[%clk 0:02:56]}  Be7 {[%clk 0:02:57]} 4. Nf3 {[%clk 0:02:53]}  Nf6 {[%clk 0:02:57]} 5. e3 {[%clk 0:02:53]}  O-O {[%clk 0:02:57]} 6. Bd3 {[%clk 0:02:54]}  Nbd7 {[%clk 0:02:57]} 7. O-O {[%clk 0:02:55]}  dxc4 {[%clk 0:02:57]} 8. Bxc4 {[%clk 0:02:54]}  a6 {[%clk 0:02:58]} 9. e4 {[%clk 0:02:51]}  b5 {[%clk 0:02:57]} 10. Bd3 {[%clk 0:02:50]}  Bb7 {[%clk 0:02:49]} 11. Qe2 {[%clk 0:02:50]}  c5 {[%clk 0:02:48]} 12. Bg5 {[%clk 0:02:46]}  cxd4 {[%clk 0:02:46]} 13. Nxd4 {[%clk 0:02:36]}  Ne5 {[%clk 0:02:46]} 14. Be3 {[%clk 0:02:28]}  Nxd3 {[%clk 0:02:45]} 15. Qxd3 {[%clk 0:02:29]}  e5 {[%clk 0:02:45]} 16. Rad1 {[%clk 0:02:23]}  exd4 {[%clk 0:02:45]} 17. Bxd4 {[%clk 0:02:24]}  b4 {[%clk 0:02:38]} 18. Qg3 {[%clk 0:02:20]}  Qb8 {[%clk 0:02:02]} 19. Be5 {[%clk 0:02:15]}  Qe8 {[%clk 0:01:57]} 20. Nd5 {[%clk 0:02:14]}  Bxd5 {[%clk 0:01:51]} 21. exd5 {[%clk 0:02:13]}  g6 {[%clk 0:01:49]} 22. Rfe1 {[%clk 0:02:03]}  Nh5 {[%clk 0:01:41]} 23. Qg4 {[%clk 0:02:02]}  Qc8 {[%clk 0:01:38]} 24. Qf3 {[%clk 0:01:58]}  Qf5 {[%clk 0:01:31]} 25. Qb3 {[%clk 0:01:49]}  Rfe8 {[%clk 0:01:20]} 26. d6 {[%clk 0:01:32]}  Bf6 {[%clk 0:01:16]} 27. Bxf6 {[%clk 0:01:18]}  Nxf6 {[%clk 0:01:15]} 28. Qxb4 {[%clk 0:01:14]}  Rxe1+ {[%clk 0:01:09]} 29. Rxe1 {[%clk 0:01:10]}  Re8 {[%clk 0:01:08]} 30. Rd1 {[%clk 0:01:01]}  Re2 {[%clk 0:01:07]} 31. Qb8+ {[%clk 0:00:49]}  Kg7 {[%clk 0:01:03]} 32. Qa7 {[%clk 0:00:49]}  Nd7 {[%clk 0:00:59]} 33. h3 {[%clk 0:00:48]}  Nc5 {[%clk 0:00:56]} 34. Rf1 {[%clk 0:00:42]}  Qd5 {[%clk 0:00:56]} 35. Qc7 {[%clk 0:00:38]}  Rd2 {[%clk 0:00:47]} 36. b4 {[%clk 0:00:33]}  Ne6 {[%clk 0:00:45]} 37. Qc3+ {[%clk 0:00:27]}  Qd4 {[%clk 0:00:45]} 38. Qa3 {[%clk 0:00:20]}  Qxd6 {[%clk 0:00:45]} 39. Qc3+ {[%clk 0:00:20]}  Qd4 {[%clk 0:00:45]} 40. Qc8 {[%clk 0:00:19]}  Rxa2 {[%clk 0:00:42]} 41. Qb7 {[%clk 0:00:16]}  Nf4 {[%clk 0:00:38]} 42. Qf3 {[%clk 0:00:13]}  Nd3 {[%clk 0:00:33]} 43. Rd1 {[%clk 0:00:12]}  Qxf2+ {[%clk 0:00:31]} 44. Qxf2 {[%clk 0:00:12]}  Nxf2 {[%clk 0:00:31]} 45. Rd6 {[%clk 0:00:11]}  Ne4 {[%clk 0:00:30]} 46. Rb6 {[%clk 0:00:11]}  Ra1+ {[%clk 0:00:25]} 47. Kh2 {[%clk 0:00:10]}  Nc3 {[%clk 0:00:25]} 48. Rc6 {[%clk 0:00:08]}  Nb5 {[%clk 0:00:25]} 49. Rb6 {[%clk 0:00:08]}  h5 {[%clk 0:00:24]} 50. Kg3 {[%clk 0:00:07]}  Ra2 {[%clk 0:00:24]} 51. Kf3 {[%clk 0:00:07]}  Kh6 {[%clk 0:00:23]} 52. g4 {[%clk 0:00:03]}  h4 {[%clk 0:00:22]} 53. Kf4 {[%clk 0:00:03]}  Nc3 {[%clk 0:00:19]} 54. Rb7 {[%clk 0:00:02]}  f6 {[%clk 0:00:16]} 55. Rf7 {[%clk 0:00:01]}  Rf2+ {[%clk 0:00:14]} 56. Ke3 {[%clk 0:00:01]}  Rb2 {[%clk 0:00:14]} 57. Kd3 {[%clk 0:00:00]}  Nd5 {[%clk 0:00:14]} 0-1


[Site "https://www.chess.com"]

[Event "Titled Tuesday Blitz July 18 Late 2023"]
[White "K2JW"]
[Black "Vaibhav Jayant Raut"]
[BlackFideId "5089034"]
[WhiteElo "2350"]
[BlackElo "2597"]
[Result "0-1"]
[Round "1"]
[TimeControl "180+2"]
[Date "2023.07.18"]
[WhiteClock "0:00:44"]
[BlackClock "0:01:34"]
[Board "117"]

1. c4 {[%clk 0:02:56]}  Nf6 {[%clk 0:02:57]} 2. d4 {[%clk 0:02:56]}  e6 {[%clk 0:02:57]} 3. Nf3 {[%clk 0:02:55]}  Bb4+ {[%clk 0:02:57]} 4. Nbd2 {[%clk 0:02:52]}  O-O {[%clk 0:02:56]} 5. Qc2 {[%clk 0:02:49]}  d5 {[%clk 0:02:55]} 6. g3 {[%clk 0:02:43]}  c5 {[%clk 0:02:54]} 7. Bg2 {[%clk 0:02:39]}  cxd4 {[%clk 0:02:53]} 8. Nxd4 {[%clk 0:02:38]}  Nc6 {[%clk 0:02:47]} 9. Nxc6 {[%clk 0:02:36]}  bxc6 {[%clk 0:02:48]} 10. c5 {[%clk 0:02:27]}  Nd7 {[%clk 0:02:35]} 11. O-O {[%clk 0:02:22]}  Bxc5 {[%clk 0:02:25]} 12. Nb3 {[%clk 0:02:21]}  Bb6 {[%clk 0:02:24]} 13. Qxc6 {[%clk 0:02:00]}  Ba6 {[%clk 0:02:23]} 14. Re1 {[%clk 0:02:01]}  Rc8 {[%clk 0:02:22]} 15. Qa4 {[%clk 0:02:00]}  Bc4 {[%clk 0:02:15]} 16. Nd2 {[%clk 0:01:46]}  Qf6 {[%clk 0:02:09]} 17. e3 {[%clk 0:01:42]}  Ne5 {[%clk 0:02:09]} 18. Nxc4 {[%clk 0:01:39]}  Rxc4 {[%clk 0:02:07]} 19. Qd1 {[%clk 0:01:35]}  Rfc8 {[%clk 0:02:07]} 20. b3 {[%clk 0:01:33]}  Rc2 {[%clk 0:02:03]} 21. Bd2 {[%clk 0:01:24]}  Ba5 {[%clk 0:01:40]} 22. Rc1 {[%clk 0:00:44]}  Rxc1 {[%clk 0:01:34]} 23. Bxc1 {[%clk 0:00:44]} 0-1


[Site "https://www.chess.com"]

[Event "Titled Tuesday Blitz July 18 Late 2023"]
[White "Sipila, Vilka"]
[Black "Slovineanu, Viacheslav"]
[WhiteFideId "505455"]
[BlackFideId "13900510"]
[WhiteElo "2597"]
[BlackElo "2348"]
[Result "1-0"]
[Round "1"]
[TimeControl "180+2"]
[Date "2023.07.18"]
[WhiteClock "0:01:45"]
[BlackClock "0:00:00"]
[Board "118"]

1. b3 {[%clk 0:02:52]}  Nf6 {[%clk 0:02:57]} 2. Bb2 {[%clk 0:02:52]}  e6 {[%clk 0:02:57]} 3. e3 {[%clk 0:02:52]}  d5 {[%clk 0:02:56]} 4. f4 {[%clk 0:02:53]}  Be7 {[%clk 0:02:50]} 5. Nf3 {[%clk 0:02:53]}  c5 {[%clk 0:02:48]} 6. Be2 {[%clk 0:02:53]}  b6 {[%clk 0:02:39]} 7. Bb5+ {[%clk 0:02:53]}  Bd7 {[%clk 0:02:38]} 8. Bxd7+ {[%clk 0:02:53]}  Nbxd7 {[%clk 0:02:38]} 9. O-O {[%clk 0:02:54]}  O-O {[%clk 0:02:36]} 10. Qe1 {[%clk 0:02:54]}  Qc7 {[%clk 0:02:28]} 11. Qg3 {[%clk 0:02:54]}  Rfd8 {[%clk 0:02:08]} 12. d3 {[%clk 0:02:53]}  b5 {[%clk 0:02:07]} 13. Ne5 {[%clk 0:02:53]}  c4 {[%clk 0:02:02]} 14. Nxd7 {[%clk 0:02:51]}  Qxd7 {[%clk 0:01:58]} 15. Nd2 {[%clk 0:02:50]}  cxd3 {[%clk 0:01:56]} 16. cxd3 {[%clk 0:02:51]}  Rac8 {[%clk 0:01:52]} 17. Nf3 {[%clk 0:02:49]}  Rc2 {[%clk 0:01:52]} 18. Bd4 {[%clk 0:02:49]}  Rdc8 {[%clk 0:01:46]} 19. a4 {[%clk 0:02:43]}  b4 {[%clk 0:01:40]} 20. a5 {[%clk 0:02:42]}  a6 {[%clk 0:01:40]} 21. h3 {[%clk 0:02:40]}  g6 {[%clk 0:01:39]} 22. Qh4 {[%clk 0:02:28]}  Ne8 {[%clk 0:01:33]} 23. Ng5 {[%clk 0:02:23]}  h5 {[%clk 0:01:12]} 24. g4 {[%clk 0:02:14]}  Re2 {[%clk 0:00:39]} 25. Rae1 {[%clk 0:02:03]}  Rxe1 {[%clk 0:00:32]} 26. Rxe1 {[%clk 0:02:02]}  Nf6 {[%clk 0:00:13]} 27. Bxf6 {[%clk 0:01:58]}  Bxf6 {[%clk 0:00:13]} 28. gxh5 {[%clk 0:01:59]}  Rc2 {[%clk 0:00:09]} 29. Kh1 {[%clk 0:01:49]}  Qe7 {[%clk 0:00:08]} 30. Rg1 {[%clk 0:01:48]}  Bxg5 {[%clk 0:00:08]} 31. Rxg5 {[%clk 0:01:47]}  Kg7 {[%clk 0:00:07]} 32. Rxg6+ {[%clk 0:01:45]}  Kf8 {[%clk 0:00:00]} 33. Rg8+ {[%clk 0:01:45]} 1-0


[Site "https://www.chess.com"]

[Event "Titled Tuesday Blitz July 18 Late 2023"]
[White "Villarreal, Agustin"]
[Black "Golubev, Mikhail"]
[WhiteFideId "125687"]
[BlackFideId "14100983"]
[WhiteElo "2348"]
[BlackElo "2595"]
[Result "1-0"]
[Round "1"]
[TimeControl "180+2"]
[Date "2023.07.18"]
[WhiteClock "0:01:33"]
[BlackClock "0:00:00"]
[Board "119"]

1. d4 {[%clk 0:03:00]}  Nf6 {[%clk 0:01:34]} 2. Nf3 {[%clk 0:02:58]}  d6 {[%clk 0:01:34]} 3. c4 {[%clk 0:02:43]}  g6 {[%clk 0:01:33]} 4. Nc3 {[%clk 0:02:44]}  Bg7 {[%clk 0:01:34]} 5. Bf4 {[%clk 0:02:42]}  O-O {[%clk 0:01:32]} 6. h3 {[%clk 0:02:41]}  Nc6 {[%clk 0:01:28]} 7. d5 {[%clk 0:02:41]}  e5 {[%clk 0:01:26]} 8. Bg5 {[%clk 0:02:41]}  Ne7 {[%clk 0:01:21]} 9. e4 {[%clk 0:02:40]}  a5 {[%clk 0:01:14]} 10. g4 {[%clk 0:02:39]}  c6 {[%clk 0:01:07]} 11. Be2 {[%clk 0:02:39]}  cxd5 {[%clk 0:01:01]} 12. cxd5 {[%clk 0:02:39]}  Bd7 {[%clk 0:00:54]} 13. Nd2 {[%clk 0:02:36]}  a4 {[%clk 0:00:47]} 14. a3 {[%clk 0:02:36]}  b5 {[%clk 0:00:39]} 15. h4 {[%clk 0:02:35]}  Rb8 {[%clk 0:00:36]} 16. h5 {[%clk 0:02:35]}  h6 {[%clk 0:00:33]} 17. Bxf6 {[%clk 0:02:33]}  Bxf6 {[%clk 0:00:33]} 18. hxg6 {[%clk 0:02:34]}  fxg6 {[%clk 0:00:30]} 19. Rxh6 {[%clk 0:02:34]}  Kg7 {[%clk 0:00:30]} 20. Rh1 {[%clk 0:02:33]}  Bg5 {[%clk 0:00:27]} 21. Nf3 {[%clk 0:02:31]}  Bf4 {[%clk 0:00:27]} 22. Qd3 {[%clk 0:02:14]}  Ng8 {[%clk 0:00:26]} 23. Nd2 {[%clk 0:02:10]}  b4 {[%clk 0:00:21]} 24. axb4 {[%clk 0:02:08]}  Rxb4 {[%clk 0:00:21]} 25. Qh3 {[%clk 0:02:09]}  Nf6 {[%clk 0:00:21]} 26. Nc4 {[%clk 0:02:04]}  Bc8 {[%clk 0:00:16]} 27. Rxa4 {[%clk 0:02:02]}  Rxa4 {[%clk 0:00:14]} 28. Nxa4 {[%clk 0:02:03]}  Nxe4 {[%clk 0:00:14]} 29. Qh7+ {[%clk 0:02:01]}  Kf6 {[%clk 0:00:14]} 30. Nc3 {[%clk 0:01:54]}  Nxc3 {[%clk 0:00:13]} 31. bxc3 {[%clk 0:01:55]}  Ba6 {[%clk 0:00:13]} 32. g5+ {[%clk 0:01:54]}  Bxg5 {[%clk 0:00:13]} 33. Ne3 {[%clk 0:01:47]}  Bxe2 {[%clk 0:00:10]} 34. Kxe2 {[%clk 0:01:46]}  Qc8 {[%clk 0:00:10]} 35. Rh3 {[%clk 0:01:43]}  Bxe3 {[%clk 0:00:08]} 36. Rxe3 {[%clk 0:01:41]}  Qc4+ {[%clk 0:00:02]} 37. Ke1 {[%clk 0:01:41]}  Qg4 {[%clk 0:00:02]} 38. Qc7 {[%clk 0:01:30]}  Qg1+ {[%clk 0:00:01]} 39. Ke2 {[%clk 0:01:30]}  Qg4+ {[%clk 0:00:02]} 40. Kd2 {[%clk 0:01:31]}  Qf4 {[%clk 0:00:01]} 41. Qxd6+ {[%clk 0:01:31]}  Kg7 {[%clk 0:00:01]} 42. Qe7+ {[%clk 0:01:30]}  Rf7 {[%clk 0:00:01]} 43. Qxe5+ {[%clk 0:01:31]}  Qxe5 {[%clk 0:00:01]} 44. Rxe5 {[%clk 0:01:32]}  Rxf2+ {[%clk 0:00:01]} 45. Re2 {[%clk 0:01:33]}  Rf4 {[%clk 0:00:01]} 46. Kd3 {[%clk 0:01:33]}  g5 {[%clk 0:00:01]} 47. c4 {[%clk 0:01:33]}  g4 {[%clk 0:00:01]} 48. c5 {[%clk 0:01:33]}  g3 {[%clk 0:00:00]} 49. Rg2 {[%clk 0:01:33]} 1-0


[Site "https://www.chess.com"]

[Event "Titled Tuesday Blitz July 18 Late 2023"]
[White "Shapiro, Daniel"]
[Black "Dragomirescu, Robin-Alexandru"]
[WhiteFideId "2001780"]
[BlackFideId "1213849"]
[WhiteElo "2343"]
[BlackElo "2591"]
[Result "1-0"]
[Round "1"]
[TimeControl "180+2"]
[Date "2023.07.18"]
[WhiteClock "0:00:01"]
[BlackClock "0:00:00"]
[Board "121"]

1. d4 {[%clk 0:02:55]}  Nf6 {[%clk 0:02:58]} 2. c4 {[%clk 0:02:54]}  e6 {[%clk 0:02:59]} 3. g3 {[%clk 0:02:54]}  Bb4+ {[%clk 0:02:57]} 4. Bd2 {[%clk 0:02:53]}  c5 {[%clk 0:02:55]} 5. Nf3 {[%clk 0:02:52]}  Nc6 {[%clk 0:02:53]} 6. dxc5 {[%clk 0:02:38]}  Bxc5 {[%clk 0:02:52]} 7. Bg2 {[%clk 0:02:37]}  b6 {[%clk 0:02:42]} 8. O-O {[%clk 0:02:35]}  Bb7 {[%clk 0:02:43]} 9. a3 {[%clk 0:02:32]}  d5 {[%clk 0:02:40]} 10. b4 {[%clk 0:02:26]}  Be7 {[%clk 0:02:40]} 11. Qb3 {[%clk 0:02:20]}  O-O {[%clk 0:02:18]} 12. cxd5 {[%clk 0:02:06]}  Qxd5 {[%clk 0:02:00]} 13. Qxd5 {[%clk 0:02:06]}  Nxd5 {[%clk 0:02:01]} 14. e4 {[%clk 0:02:06]}  Nf6 {[%clk 0:02:01]} 15. Nc3 {[%clk 0:02:07]}  Rfd8 {[%clk 0:01:57]} 16. Rfd1 {[%clk 0:02:04]}  Nd4 {[%clk 0:01:51]} 17. Nxd4 {[%clk 0:01:58]}  Rxd4 {[%clk 0:01:52]} 18. e5 {[%clk 0:01:34]}  Nd5 {[%clk 0:01:51]} 19. Nb5 {[%clk 0:01:22]}  Rd3 {[%clk 0:01:42]} 20. Be4 {[%clk 0:00:53]}  Rb3 {[%clk 0:01:39]} 21. Nd4 {[%clk 0:00:31]}  Rb2 {[%clk 0:00:36]} 22. Bxd5 {[%clk 0:00:30]}  Bxd5 {[%clk 0:00:35]} 23. Bc1 {[%clk 0:00:30]}  Rb3 {[%clk 0:00:27]} 24. Nxb3 {[%clk 0:00:29]}  Bxb3 {[%clk 0:00:28]} 25. Rd7 {[%clk 0:00:29]}  Kf8 {[%clk 0:00:24]} 26. Bd2 {[%clk 0:00:23]}  Ke8 {[%clk 0:00:21]} 27. Rc7 {[%clk 0:00:18]}  Bd8 {[%clk 0:00:20]} 28. Rc3 {[%clk 0:00:14]}  Bd5 {[%clk 0:00:20]} 29. Rac1 {[%clk 0:00:14]}  Kd7 {[%clk 0:00:20]} 30. a4 {[%clk 0:00:13]}  h5 {[%clk 0:00:16]} 31. f4 {[%clk 0:00:12]}  a6 {[%clk 0:00:15]} 32. Rd3 {[%clk 0:00:12]}  Be7 {[%clk 0:00:15]} 33. a5 {[%clk 0:00:09]}  bxa5 {[%clk 0:00:12]} 34. bxa5 {[%clk 0:00:09]}  Rb8 {[%clk 0:00:13]} 35. h3 {[%clk 0:00:06]}  Rb2 {[%clk 0:00:11]} 36. g4 {[%clk 0:00:03]}  hxg4 {[%clk 0:00:10]} 37. hxg4 {[%clk 0:00:04]}  g6 {[%clk 0:00:10]} 38. f5 {[%clk 0:00:04]}  gxf5 {[%clk 0:00:11]} 39. gxf5 {[%clk 0:00:05]}  Bd8 {[%clk 0:00:09]} 40. fxe6+ {[%clk 0:00:04]}  fxe6 {[%clk 0:00:09]} 41. Rf1 {[%clk 0:00:03]}  Be7 {[%clk 0:00:05]} 42. Rf7 {[%clk 0:00:02]}  Ke8 {[%clk 0:00:05]} 43. Rh7 {[%clk 0:00:01]}  Bc5+ {[%clk 0:00:05]} 44. Be3 {[%clk 0:00:01]}  Be4 {[%clk 0:00:03]} 45. Rc3 {[%clk 0:00:01]}  Bxe3+ {[%clk 0:00:00]} 46. Rxe3 {[%clk 0:00:01]} 1-0


[Site "https://www.chess.com"]

[Event "Titled Tuesday Blitz July 18 Late 2023"]
[White "Rodchenkov, Sergey D."]
[Black "Dubreuil, Julien"]
[WhiteFideId "4168712"]
[BlackFideId "621285"]
[WhiteElo "2585"]
[BlackElo "2341"]
[Result "1-0"]
[Round "1"]
[TimeControl "180+2"]
[Date "2023.07.18"]
[WhiteClock "0:01:48"]
[BlackClock "0:00:53"]
[Board "122"]

1. e4 {[%clk 0:03:00]}  c5 {[%clk 0:02:59]} 2. Nf3 {[%clk 0:03:00]}  Nc6 {[%clk 0:03:00]} 3. d4 {[%clk 0:03:00]}  cxd4 {[%clk 0:03:01]} 4. Nxd4 {[%clk 0:03:01]}  g6 {[%clk 0:03:00]} 5. c4 {[%clk 0:03:00]}  Bg7 {[%clk 0:03:00]} 6. Be3 {[%clk 0:03:01]}  Nf6 {[%clk 0:03:01]} 7. Nc3 {[%clk 0:03:01]}  O-O {[%clk 0:03:01]} 8. Be2 {[%clk 0:03:01]}  d6 {[%clk 0:03:01]} 9. O-O {[%clk 0:03:01]}  Bd7 {[%clk 0:03:01]} 10. Qd2 {[%clk 0:03:01]}  Nxd4 {[%clk 0:02:58]} 11. Bxd4 {[%clk 0:03:02]}  Bc6 {[%clk 0:02:59]} 12. f3 {[%clk 0:03:02]}  a5 {[%clk 0:02:59]} 13. b3 {[%clk 0:03:02]}  Nd7 {[%clk 0:02:58]} 14. Be3 {[%clk 0:03:03]}  Nc5 {[%clk 0:02:57]} 15. Rac1 {[%clk 0:03:03]}  Be5 {[%clk 0:02:50]} 16. Nb5 {[%clk 0:03:01]}  e6 {[%clk 0:02:43]} 17. Bg5 {[%clk 0:03:01]}  f6 {[%clk 0:02:27]} 18. Bh6 {[%clk 0:02:55]}  f5 {[%clk 0:02:22]} 19. Bxf8 {[%clk 0:02:51]}  Qxf8 {[%clk 0:02:22]} 20. exf5 {[%clk 0:02:40]}  gxf5 {[%clk 0:02:06]} 21. f4 {[%clk 0:02:33]}  Qg7 {[%clk 0:02:04]} 22. Bf3 {[%clk 0:02:27]}  Bb2 {[%clk 0:01:32]} 23. Rc2 {[%clk 0:02:17]}  Bf6 {[%clk 0:01:32]} 24. Qxd6 {[%clk 0:02:09]}  Ne4 {[%clk 0:01:24]} 25. Qxe6+ {[%clk 0:02:07]}  Kh8 {[%clk 0:01:25]} 26. Qxf5 {[%clk 0:01:59]}  Bd4+ {[%clk 0:01:15]} 27. Nxd4 {[%clk 0:01:54]}  Qxd4+ {[%clk 0:01:14]} 28. Kh1 {[%clk 0:01:54]}  Nd6 {[%clk 0:01:04]} 29. Qe5+ {[%clk 0:01:52]}  Qxe5 {[%clk 0:01:03]} 30. fxe5 {[%clk 0:01:53]}  Ne4 {[%clk 0:01:02]} 31. Bxe4 {[%clk 0:01:52]}  Bxe4 {[%clk 0:01:01]} 32. Rd2 {[%clk 0:01:51]}  Bc6 {[%clk 0:01:00]} 33. e6 {[%clk 0:01:50]}  Re8 {[%clk 0:01:01]} 34. Re2 {[%clk 0:01:48]}  Kg8 {[%clk 0:00:53]} 35. e7 {[%clk 0:01:48]} 1-0


[Site "https://www.chess.com"]

[Event "Titled Tuesday Blitz July 18 Late 2023"]
[White "ExchangeAB"]
[Black "Lizak, Peter"]
[BlackFideId "731595"]
[WhiteElo "2339"]
[BlackElo "2584"]
[Result "0-1"]
[Round "1"]
[TimeControl "180+2"]
[Date "2023.07.18"]
[WhiteClock "0:00:18"]
[BlackClock "0:00:57"]
[Board "123"]

1. d4 {[%clk 0:03:00]}  Nf6 {[%clk 0:02:59]} 2. Nc3 {[%clk 0:03:00]}  c5 {[%clk 0:03:00]} 3. d5 {[%clk 0:03:00]}  g6 {[%clk 0:03:00]} 4. e4 {[%clk 0:03:00]}  d6 {[%clk 0:03:00]} 5. f4 {[%clk 0:03:00]}  Bg7 {[%clk 0:03:00]} 6. Bb5+ {[%clk 0:03:00]}  Bd7 {[%clk 0:02:57]} 7. e5 {[%clk 0:02:59]}  Ng8 {[%clk 0:02:30]} 8. Nf3 {[%clk 0:02:49]}  Bxb5 {[%clk 0:02:28]} 9. Nxb5 {[%clk 0:02:49]}  Qa5+ {[%clk 0:02:28]} 10. Nc3 {[%clk 0:02:49]}  Nd7 {[%clk 0:02:27]} 11. O-O {[%clk 0:02:22]}  Nh6 {[%clk 0:02:14]} 12. exd6 {[%clk 0:02:12]}  exd6 {[%clk 0:02:14]} 13. Re1+ {[%clk 0:02:10]}  Kf8 {[%clk 0:02:14]} 14. Bd2 {[%clk 0:02:02]}  Qb6 {[%clk 0:02:09]} 15. Ng5 {[%clk 0:01:52]}  Nf5 {[%clk 0:02:07]} 16. Qe2 {[%clk 0:01:26]}  h6 {[%clk 0:01:59]} 17. Nxf7 {[%clk 0:01:16]}  Rh7 {[%clk 0:01:33]} 18. g4 {[%clk 0:01:10]}  Bd4+ {[%clk 0:01:29]} 19. Kh1 {[%clk 0:01:06]}  Rxf7 {[%clk 0:01:22]} 20. gxf5 {[%clk 0:01:07]}  gxf5 {[%clk 0:01:17]} 21. Qe6 {[%clk 0:00:56]}  Nf6 {[%clk 0:01:16]} 22. Qxf5 {[%clk 0:00:50]}  Qxb2 {[%clk 0:01:14]} 23. Rab1 {[%clk 0:00:48]}  Qa3 {[%clk 0:01:09]} 24. Rb3 {[%clk 0:00:44]}  Qa6 {[%clk 0:00:59]} 25. Ne4 {[%clk 0:00:38]}  Re8 {[%clk 0:00:58]} 26. Nxf6 {[%clk 0:00:21]}  Rxe1+ {[%clk 0:00:58]} 27. Kg2 {[%clk 0:00:18]}  Qf1+ {[%clk 0:00:57]} 0-1


[Site "https://www.chess.com"]

[Event "Titled Tuesday Blitz July 18 Late 2023"]
[White "Geivondian, Arman"]
[Black "Avalos Parra, Joao"]
[WhiteFideId "24102032"]
[BlackFideId "3402541"]
[WhiteElo "2584"]
[BlackElo "2336"]
[Result "1-0"]
[Round "1"]
[TimeControl "180+2"]
[Date "2023.07.18"]
[WhiteClock "0:02:35"]
[BlackClock "0:01:20"]
[Board "124"]

1. e4 {[%clk 0:03:00]}  e5 {[%clk 0:02:59]} 2. Nf3 {[%clk 0:03:01]}  Nc6 {[%clk 0:03:00]} 3. d4 {[%clk 0:03:02]}  exd4 {[%clk 0:03:00]} 4. Nxd4 {[%clk 0:03:02]}  Nf6 {[%clk 0:03:00]} 5. Nxc6 {[%clk 0:03:03]}  bxc6 {[%clk 0:03:01]} 6. Bd3 {[%clk 0:03:03]}  d5 {[%clk 0:03:00]} 7. exd5 {[%clk 0:03:04]}  cxd5 {[%clk 0:02:59]} 8. O-O {[%clk 0:03:05]}  Be7 {[%clk 0:02:56]} 9. Nc3 {[%clk 0:03:06]}  O-O {[%clk 0:02:56]} 10. Bg5 {[%clk 0:03:06]}  Rb8 {[%clk 0:02:57]} 11. b3 {[%clk 0:03:05]}  c6 {[%clk 0:02:57]} 12. Qd2 {[%clk 0:03:05]}  Bb4 {[%clk 0:02:47]} 13. a3 {[%clk 0:03:03]}  Be7 {[%clk 0:02:41]} 14. Rfe1 {[%clk 0:03:02]}  h6 {[%clk 0:02:40]} 15. Bxh6 {[%clk 0:03:01]}  gxh6 {[%clk 0:02:34]} 16. Qxh6 {[%clk 0:03:02]}  Re8 {[%clk 0:02:35]} 17. Re5 {[%clk 0:02:59]}  Ne4 {[%clk 0:01:33]} 18. Nxe4 {[%clk 0:02:44]}  dxe4 {[%clk 0:01:32]} 19. Bxe4 {[%clk 0:02:42]}  f5 {[%clk 0:01:28]} 20. Bxf5 {[%clk 0:02:37]}  Bxf5 {[%clk 0:01:24]} 21. Rxf5 {[%clk 0:02:38]}  Qd6 {[%clk 0:01:24]} 22. Rg5+ {[%clk 0:02:35]}  Bxg5 {[%clk 0:01:20]} 23. Qxd6 {[%clk 0:02:35]} 1-0


[Site "https://www.chess.com"]